[Event "*** Titled Tuesday 3|2 Blitz"]
[Site "Chess.com"]
[Date "2015.10.06"]
[Round "6"]
[White "E-Shaposhnikov"]
[Black "Er_is_geen_hoop_meer"]
[Result "1-0"]
[WhiteElo "2549"]
[BlackElo "2349"]
[TimeControl "180+2"]
[EndTime "12:11:12 PDT"]
[Termination "E-Shaposhnikov won by resignation"]

1. e4 {[%clk 0:02:50.7]} 1... c5 {[%clk 0:03:00.8]} 2. Nf3 {[%clk 0:02:51.9]}
2... e6 {[%clk 0:03:02]} 3. d4 {[%clk 0:02:52.1]} 3... cxd4 {[%clk 0:03:03.9]}
4. Nxd4 {[%clk 0:02:54]} 4... Nc6 {[%clk 0:03:05.3]} 5. Nb5 {[%clk 0:02:54.5]}
5... d6 {[%clk 0:03:04.2]} 6. Bf4 {[%clk 0:02:56]} 6... e5 {[%clk 0:03:05.4]} 7.
Be3 {[%clk 0:02:57.5]} 7... a6 {[%clk 0:03:04.7]} 8. N5c3 {[%clk 0:02:58.3]}
8... Nf6 {[%clk 0:03:05.5]} 9. Bc4 {[%clk 0:02:59.9]} 9... Be6 {[%clk
0:03:03.4]} 10. Nd5 {[%clk 0:03:01.1]} 10... Bxd5 {[%clk 0:03:00.4]} 11. Bxd5
{[%clk 0:03:01.2]} 11... Nxd5 {[%clk 0:03:00.6]} 12. Qxd5 {[%clk 0:03:01.9]}
12... Rc8 {[%clk 0:02:54.2]} 13. Nc3 {[%clk 0:03:02.3]} 13... Nb4 {[%clk
0:02:52.3]} 14. Qb3 {[%clk 0:02:54.4]} 14... d5 {[%clk 0:02:53.2]} 15. exd5
{[%clk 0:02:50.2]} 15... a5 {[%clk 0:02:36.6]} 16. a3 {[%clk 0:02:34.7]} 16...
Na6 {[%clk 0:02:37.6]} 17. Qxb7 {[%clk 0:02:34.6]} 17... Nc5 {[%clk 0:02:33.4]}
18. Qb5+ {[%clk 0:02:30.2]} 18... Nd7 {[%clk 0:02:33.8]} 19. O-O {[%clk
0:02:19.8]} 19... Rb8 {[%clk 0:02:34.6]} 20. Qc6 {[%clk 0:02:19.9]} 20... Rxb2
{[%clk 0:02:31.6]} 21. Ne4 {[%clk 0:02:20.6]} 21... Rb8 {[%clk 0:02:14.9]} 22.
Rab1 {[%clk 0:02:13]} 22... Rc8 {[%clk 0:02:15.7]} 23. Qa4 {[%clk 0:02:12.1]}
23... f5 {[%clk 0:02:14.3]} 24. Ng5 {[%clk 0:01:58.7]} 24... f4 {[%clk
0:02:15.4]} 25. Ne6 {[%clk 0:01:59.5]} 25... Qe7 {[%clk 0:02:17.1]} 26. Bxf4
{[%clk 0:01:43.6]} 26... exf4 {[%clk 0:02:13.3]} 27. Rfe1 {[%clk 0:01:41.6]}
27... Kf7 {[%clk 0:02:14.2]} 28. Ng5+ {[%clk 0:01:25.6]} 28... Qxg5 {[%clk
0:02:03]} 29. Qxd7+ {[%clk 0:01:25.9]} 29... Be7 {[%clk 0:02:04]} 30. Qe6+
{[%clk 0:01:27]} 30... Kf8 {[%clk 0:02:00.8]} 31. Qxc8+ {[%clk 0:01:28.9]} 31...
Kf7 {[%clk 0:02:02.3]} 32. Qe6+ {[%clk 0:01:28.5]} 32... Kf8 {[%clk 0:02:02.9]}
33. Rb8+ {[%clk 0:01:30.3]} 1-0

[Event "*** Titled Tuesday 3|2 Blitz"]
[Site "Chess.com"]
[Date "2015.10.06"]
[Round "6"]
[White "Chesster_30"]
[Black "GGuseinov"]
[Result "0-1"]
[WhiteElo "1838"]
[BlackElo "2506"]
[TimeControl "180+2"]
[EndTime "12:11:36 PDT"]
[Termination "GGuseinov won by resignation"]

1. e4 {[%clk 0:03:01.9]} 1... c5 {[%clk 0:02:47]} 2. Nf3 {[%clk 0:03:00.9]} 2...
Nc6 {[%clk 0:02:47.9]} 3. Bb5 {[%clk 0:03:01.3]} 3... g6 {[%clk 0:02:48.5]} 4.
Bxc6 {[%clk 0:03:02.4]} 4... bxc6 {[%clk 0:02:48.9]} 5. O-O {[%clk 0:03:03.2]}
5... Bg7 {[%clk 0:02:50.3]} 6. Re1 {[%clk 0:03:04.5]} 6... Nh6 {[%clk
0:02:50.7]} 7. c3 {[%clk 0:03:03.8]} 7... O-O {[%clk 0:02:51.9]} 8. h3 {[%clk
0:03:04.8]} 8... d5 {[%clk 0:02:52.3]} 9. e5 {[%clk 0:03:01.9]} 9... d4 {[%clk
0:02:53.6]} 10. d3 {[%clk 0:02:59.1]} 10... dxc3 {[%clk 0:02:52.9]} 11. Nxc3
{[%clk 0:02:59.6]} 11... Ba6 {[%clk 0:02:54.1]} 12. Ne4 {[%clk 0:02:46.8]} 12...
Qd5 {[%clk 0:02:55.1]} 13. Qb3 {[%clk 0:02:15.3]} 13... Rfd8 {[%clk 0:02:37.9]}
14. Bxh6 {[%clk 0:02:00.5]} 14... Bxh6 {[%clk 0:02:37]} 15. Red1 {[%clk
0:01:55.2]} 15... c4 {[%clk 0:02:32.4]} 16. Qa3 {[%clk 0:01:47.6]} 16... cxd3
{[%clk 0:02:33.5]} 17. Nc3 {[%clk 0:01:30]} 17... Qc4 {[%clk 0:02:34.3]} 18.
Qxe7 {[%clk 0:01:27.2]} 18... Rab8 {[%clk 0:02:21.3]} 19. Rab1 {[%clk
0:01:17.6]} 19... d2 {[%clk 0:02:16.7]} 20. g4 {[%clk 0:01:09.6]} 20... Rd3
{[%clk 0:02:07.6]} 21. Kg2 {[%clk 0:00:56.3]} 21... Qf4 {[%clk 0:02:07.7]} 22.
Nh2 {[%clk 0:00:51.4]} 22... c5 {[%clk 0:02:08.5]} 23. Qc7 {[%clk 0:00:38]}
23... Bb7+ {[%clk 0:02:09.4]} 24. Kg1 {[%clk 0:00:37.9]} 24... Rg3+ {[%clk
0:02:06.7]} 25. Kf1 {[%clk 0:00:34.3]} 25... Ba6+ {[%clk 0:02:05.7]} 0-1

[Event "*** Titled Tuesday 3|2 Blitz"]
[Site "Chess.com"]
[Date "2015.10.06"]
[Round "6"]
[White "kleinebeer98"]
[Black "Moltini"]
[Result "0-1"]
[WhiteElo "2277"]
[BlackElo "2172"]
[TimeControl "180+2"]
[EndTime "12:11:44 PDT"]
[Termination "Moltini won by resignation"]

1. e4 {[%clk 0:03:01.9]} 1... c5 {[%clk 0:03:00.6]} 2. Nf3 {[%clk 0:02:59.6]}
2... d6 {[%clk 0:03:01.3]} 3. d4 {[%clk 0:02:59.6]} 3... cxd4 {[%clk 0:03:02.8]}
4. Nxd4 {[%clk 0:03:01.5]} 4... Nf6 {[%clk 0:03:04.4]} 5. Nc3 {[%clk 0:03:02.9]}
5... a6 {[%clk 0:03:05.9]} 6. g3 {[%clk 0:03:01.1]} 6... e5 {[%clk 0:03:06.6]}
7. Nb3 {[%clk 0:02:57.5]} 7... Be7 {[%clk 0:03:07.7]} 8. Bg2 {[%clk 0:02:57.4]}
8... O-O {[%clk 0:03:09.1]} 9. O-O {[%clk 0:02:57.1]} 9... Nbd7 {[%clk
0:03:10.2]} 10. a4 {[%clk 0:02:57.1]} 10... b6 {[%clk 0:03:10.5]} 11. Be3 {[%clk
0:02:50.5]} 11... Bb7 {[%clk 0:03:11.2]} 12. Qe2 {[%clk 0:02:47.7]} 12... Rc8
{[%clk 0:03:11.9]} 13. Rfd1 {[%clk 0:02:46.6]} 13... Qc7 {[%clk 0:03:12.9]} 14.
Rac1 {[%clk 0:02:40.4]} 14... Nc5 {[%clk 0:03:13.3]} 15. Nxc5 {[%clk 0:02:40]}
15... dxc5 {[%clk 0:03:14.5]} 16. Nd5 {[%clk 0:02:38.5]} 16... Nxd5 {[%clk
0:03:14]} 17. exd5 {[%clk 0:02:40.4]} 17... Bd6 {[%clk 0:03:15.2]} 18. c4 {[%clk
0:02:37.7]} 18... f5 {[%clk 0:03:16.1]} 19. Bd2 {[%clk 0:02:23]} 19... Rce8
{[%clk 0:03:13.3]} 20. a5 {[%clk 0:02:19.8]} 20... bxa5 {[%clk 0:03:11]} 21. Ra1
{[%clk 0:02:20.3]} 21... e4 {[%clk 0:03:08.6]} 22. Bxa5 {[%clk 0:02:19.9]} 22...
Qe7 {[%clk 0:03:07.9]} 23. Re1 {[%clk 0:02:16.2]} 23... Be5 {[%clk 0:03:06.3]}
24. Rab1 {[%clk 0:02:13.3]} 24... Qf6 {[%clk 0:02:57.5]} 25. b4 {[%clk
0:02:11.9]} 25... Bc3 {[%clk 0:02:53.7]} 26. Red1 {[%clk 0:01:55.4]} 26... f4
{[%clk 0:02:39.2]} 27. Bh3 {[%clk 0:01:19.6]} 27... f3 {[%clk 0:02:35.2]} 28.
Qf1 {[%clk 0:01:10.2]} 28... e3 {[%clk 0:02:33.9]} 29. fxe3 {[%clk 0:01:10.2]}
29... Rxe3 {[%clk 0:02:27.9]} 30. bxc5 {[%clk 0:01:07.6]} 30... Bxa5 {[%clk
0:02:24.1]} 31. Rxb7 {[%clk 0:01:07.8]} 31... f2+ {[%clk 0:02:23.7]} 32. Kh1
{[%clk 0:01:08.4]} 32... Re1 {[%clk 0:02:24.6]} 33. c6 {[%clk 0:00:41.5]} 33...
Qf3+ {[%clk 0:02:19.4]} 0-1

[Event "*** Titled Tuesday 3|2 Blitz"]
[Site "Chess.com"]
[Date "2015.10.06"]
[Round "6"]
[White "Arashy_CC"]
[Black "Schemato"]
[Result "1-0"]
[WhiteElo "2364"]
[BlackElo "2183"]
[TimeControl "180+2"]
[EndTime "12:11:50 PDT"]
[Termination "Arashy_CC won by checkmate"]

1. c4 {[%clk 0:03:01.9]} 1... g6 {[%clk 0:02:59.5]} 2. d4 {[%clk 0:03:02.4]}
2... Nf6 {[%clk 0:02:59.7]} 3. Nc3 {[%clk 0:03:03]} 3... Bg7 {[%clk 0:03:01]} 4.
e4 {[%clk 0:03:04]} 4... d6 {[%clk 0:03:02.5]} 5. Bg5 {[%clk 0:03:05.2]} 5... h6
{[%clk 0:03:02]} 6. Be3 {[%clk 0:03:03.6]} 6... O-O {[%clk 0:02:57.8]} 7. Be2
{[%clk 0:02:56.3]} 7... e5 {[%clk 0:02:55]} 8. d5 {[%clk 0:02:56.8]} 8... a5
{[%clk 0:02:55.1]} 9. h4 {[%clk 0:02:52.7]} 9... Na6 {[%clk 0:02:54]} 10. h5
{[%clk 0:02:49.4]} 10... g5 {[%clk 0:02:49.8]} 11. f3 {[%clk 0:02:41.7]} 11...
g4 {[%clk 0:02:33.6]} 12. fxg4 {[%clk 0:02:30.5]} 12... Nc5 {[%clk 0:02:33.4]}
13. g5 {[%clk 0:02:09.6]} 13... Nfxe4 {[%clk 0:02:27.4]} 14. gxh6 {[%clk
0:02:09]} 14... Bf6 {[%clk 0:02:26.1]} 15. Nf3 {[%clk 0:01:39.9]} 15... Bg4
{[%clk 0:02:03.5]} 16. Qc2 {[%clk 0:01:35.4]} 16... Bxf3 {[%clk 0:01:46]} 17.
Bxf3 {[%clk 0:01:26.9]} 17... Bh4+ {[%clk 0:01:45.6]} 18. g3 {[%clk 0:01:02.3]}
18... Bxg3+ {[%clk 0:01:36.1]} 19. Ke2 {[%clk 0:01:02.6]} 19... Nxc3+ {[%clk
0:01:21.4]} 20. Qxc3 {[%clk 0:01:04.5]} 20... Bf4 {[%clk 0:01:05.8]} 21. Rag1+
{[%clk 0:01:03.9]} 21... Kh7 {[%clk 0:00:58.4]} 22. Bxf4 {[%clk 0:01:04]} 22...
exf4 {[%clk 0:00:58.9]} 23. Qg7# {[%clk 0:01:04.6]} 1-0

[Event "*** Titled Tuesday 3|2 Blitz"]
[Site "Chess.com"]
[Date "2015.10.06"]
[Round "6"]
[White "AleksandrNevski"]
[Black "GeorgMeier"]
[Result "0-1"]
[WhiteElo "2432"]
[BlackElo "2613"]
[TimeControl "180+2"]
[EndTime "12:12:00 PDT"]
[Termination "GeorgMeier won by resignation"]

1. c4 {[%clk 0:03:01.9]} 1... e6 {[%clk 0:03:01.9]} 2. Nf3 {[%clk 0:03:01.6]}
2... d5 {[%clk 0:03:02.9]} 3. b3 {[%clk 0:03:03.3]} 3... Nf6 {[%clk 0:03:04]} 4.
Bb2 {[%clk 0:03:04.2]} 4... Be7 {[%clk 0:03:05.4]} 5. g3 {[%clk 0:03:04.6]} 5...
O-O {[%clk 0:03:06.6]} 6. Bg2 {[%clk 0:03:06.2]} 6... c5 {[%clk 0:03:08.2]} 7.
e3 {[%clk 0:03:04.7]} 7... Nc6 {[%clk 0:03:09.6]} 8. O-O {[%clk 0:03:04.3]} 8...
b6 {[%clk 0:03:11]} 9. Nc3 {[%clk 0:03:03.4]} 9... Ba6 {[%clk 0:03:12.3]} 10. d3
{[%clk 0:03:02.5]} 10... Qd7 {[%clk 0:03:13.2]} 11. Qe2 {[%clk 0:03:03.7]} 11...
Rad8 {[%clk 0:03:14.6]} 12. Rfd1 {[%clk 0:03:00.6]} 12... Rfe8 {[%clk
0:03:15.9]} 13. Nb5 {[%clk 0:02:58.8]} 13... h6 {[%clk 0:02:54.5]} 14. e4 {[%clk
0:02:56.8]} 14... Bf8 {[%clk 0:02:44.6]} 15. Bxf6 {[%clk 0:02:34]} 15... gxf6
{[%clk 0:02:45.4]} 16. Bh3 {[%clk 0:02:20.1]} 16... dxe4 {[%clk 0:02:41]} 17.
dxe4 {[%clk 0:02:19.8]} 17... Qe7 {[%clk 0:02:42.4]} 18. Rac1 {[%clk 0:01:32.3]}
18... Bb7 {[%clk 0:02:43.4]} 19. Qe3 {[%clk 0:01:24.7]} 19... Rd7 {[%clk
0:02:29.4]} 20. Bg2 {[%clk 0:01:15.6]} 20... Red8 {[%clk 0:02:27.8]} 21. Rxd7
{[%clk 0:01:16]} 21... Rxd7 {[%clk 0:02:27.7]} 22. e5 {[%clk 0:01:15]} 22...
fxe5 {[%clk 0:02:20.2]} 23. Nxe5 {[%clk 0:01:15.1]} 23... Nxe5 {[%clk
0:02:21.3]} 24. Bxb7 {[%clk 0:00:56.9]} 24... Bg7 {[%clk 0:02:12.7]} 25. Bg2
{[%clk 0:00:41.9]} 25... Qd8 {[%clk 0:01:58.6]} 26. Bf1 {[%clk 0:00:34.7]} 26...
Rd2 {[%clk 0:01:55.7]} 27. Nc3 {[%clk 0:00:33.7]} 27... Ng4 {[%clk 0:01:56]} 0-1

[Event "*** Titled Tuesday 3|2 Blitz"]
[Site "Chess.com"]
[Date "2015.10.06"]
[Round "6"]
[White "Ginger_GM"]
[Black "Ar4uha"]
[Result "1-0"]
[WhiteElo "2458"]
[BlackElo "2396"]
[TimeControl "180+2"]
[EndTime "12:13:19 PDT"]
[Termination "Ginger_GM won by resignation"]

1. d4 {[%clk 0:03:01.9]} 1... Nf6 {[%clk 0:02:59.2]} 2. c4 {[%clk 0:03:02.3]}
2... e6 {[%clk 0:03:00.7]} 3. Nf3 {[%clk 0:03:02.9]} 3... c5 {[%clk 0:03:01.9]}
4. d5 {[%clk 0:03:02.4]} 4... exd5 {[%clk 0:03:03.8]} 5. cxd5 {[%clk 0:03:03.1]}
5... d6 {[%clk 0:03:05.3]} 6. Nc3 {[%clk 0:03:03.7]} 6... g6 {[%clk 0:03:06.5]}
7. Bf4 {[%clk 0:03:04.5]} 7... Bg7 {[%clk 0:03:05.8]} 8. e3 {[%clk 0:03:01.1]}
8... O-O {[%clk 0:03:06.1]} 9. h3 {[%clk 0:03:01.7]} 9... a6 {[%clk 0:03:05.9]}
10. a4 {[%clk 0:03:02.3]} 10... Ne8 {[%clk 0:02:59.8]} 11. Be2 {[%clk 0:03:02]}
11... Nd7 {[%clk 0:03:00.4]} 12. O-O {[%clk 0:03:01.8]} 12... Qe7 {[%clk
0:03:00.4]} 13. a5 {[%clk 0:02:59.9]} 13... Rb8 {[%clk 0:02:58.7]} 14. Na4
{[%clk 0:02:57]} 14... Ne5 {[%clk 0:02:59.1]} 15. Nd2 {[%clk 0:02:56.1]} 15...
Nc7 {[%clk 0:02:58.9]} 16. Nb6 {[%clk 0:02:55.9]} 16... Na8 {[%clk 0:02:57.3]}
17. Nbc4 {[%clk 0:02:53.7]} 17... b5 {[%clk 0:02:48.6]} 18. axb6 {[%clk
0:02:52.5]} 18... Nxb6 {[%clk 0:02:49.8]} 19. Bxe5 {[%clk 0:02:53.2]} 19... Bxe5
{[%clk 0:02:44.1]} 20. Nxb6 {[%clk 0:02:52.2]} 20... Rxb6 {[%clk 0:02:46]} 21.
Nc4 {[%clk 0:02:53.4]} 21... Rb4 {[%clk 0:02:47.1]} 22. Ra4 {[%clk 0:02:48.3]}
22... Rb8 {[%clk 0:02:17.6]} 23. b3 {[%clk 0:02:38.7]} 23... Bg7 {[%clk
0:01:59.3]} 24. Na5 {[%clk 0:02:33.1]} 24... Qc7 {[%clk 0:01:43.1]} 25. Qc2
{[%clk 0:02:22.3]} 25... Bd7 {[%clk 0:01:40.4]} 26. Ra2 {[%clk 0:02:21.4]} 26...
Bb5 {[%clk 0:01:37.7]} 27. Bxb5 {[%clk 0:02:19.8]} 27... Rxb5 {[%clk 0:01:36.1]}
28. Nc4 {[%clk 0:02:16.5]} 28... Rfb8 {[%clk 0:01:09.4]} 29. Rxa6 {[%clk
0:02:15.5]} 29... Rxb3 {[%clk 0:01:10.8]} 30. Rc6 {[%clk 0:02:13.9]} 30... Qe7
{[%clk 0:01:08.1]} 31. Nxd6 {[%clk 0:02:13.9]} 31... Rc3 {[%clk 0:01:00.7]} 32.
Qa2 {[%clk 0:02:14.1]} 32... h5 {[%clk 0:00:59.1]} 33. Nc4 {[%clk 0:02:08.3]}
33... Qe4 {[%clk 0:00:57]} 34. Nd6 {[%clk 0:02:03.2]} 34... Qd3 {[%clk
0:00:53.4]} 35. Qa7 {[%clk 0:01:47.7]} 35... Rf8 {[%clk 0:00:28.9]} 36. Rxc5
{[%clk 0:01:48.1]} 36... Ra3 {[%clk 0:00:18.1]} 37. Qe7 {[%clk 0:01:47.6]} 37...
Rb8 {[%clk 0:00:15.4]} 38. Qxf7+ {[%clk 0:01:47.4]} 38... Kh7 {[%clk 0:00:17]}
39. Rc7 {[%clk 0:01:48.1]} 1-0

[Event "*** Titled Tuesday 3|2 Blitz"]
[Site "Chess.com"]
[Date "2015.10.06"]
[Round "6"]
[White "jefferyx"]
[Black "AndreyOstrovskiy"]
[Result "1-0"]
[WhiteElo "2523"]
[BlackElo "2367"]
[TimeControl "180+2"]
[EndTime "12:13:31 PDT"]
[Termination "jefferyx won by resignation"]

1. b4 {[%clk 0:03:01.9]} 1... d5 {[%clk 0:02:59.6]} 2. e3 {[%clk 0:03:02.2]}
2... e6 {[%clk 0:03:00.7]} 3. Bb2 {[%clk 0:03:03.6]} 3... Nf6 {[%clk 0:03:01.7]}
4. a3 {[%clk 0:03:05.1]} 4... a5 {[%clk 0:03:02.8]} 5. b5 {[%clk 0:03:06.2]}
5... c5 {[%clk 0:03:04.2]} 6. g4 {[%clk 0:03:07.5]} 6... h6 {[%clk 0:03:01.5]}
7. h4 {[%clk 0:03:03.3]} 7... d4 {[%clk 0:02:48.7]} 8. Rh3 {[%clk 0:03:03]} 8...
e5 {[%clk 0:02:46.7]} 9. Rg3 {[%clk 0:03:03.8]} 9... Ne4 {[%clk 0:02:45]} 10.
Rg2 {[%clk 0:03:04.4]} 10... Be6 {[%clk 0:02:38.8]} 11. Nf3 {[%clk 0:03:03.9]}
11... Nd7 {[%clk 0:02:38.7]} 12. Qe2 {[%clk 0:03:00.2]} 12... Bd5 {[%clk
0:02:21.3]} 13. d3 {[%clk 0:02:52.2]} 13... Nd6 {[%clk 0:02:18.9]} 14. exd4
{[%clk 0:02:47]} 14... cxd4 {[%clk 0:02:14.8]} 15. Nxe5 {[%clk 0:02:40.3]} 15...
Qe7 {[%clk 0:02:15.2]} 16. Nxd7 {[%clk 0:02:30.1]} 16... Kxd7 {[%clk 0:02:08.9]}
17. Qxe7+ {[%clk 0:02:24.1]} 17... Bxe7 {[%clk 0:02:09.7]} 18. Rg3 {[%clk
0:02:26]} 18... Bxh4 {[%clk 0:02:08.6]} 19. Rh3 {[%clk 0:02:23.6]} 19... Rhe8+
{[%clk 0:02:05.2]} 20. Kd1 {[%clk 0:02:23.3]} 20... Bxf2 {[%clk 0:02:05.2]} 21.
Be2 {[%clk 0:02:09.5]} 21... a4 {[%clk 0:01:59]} 22. Rh5 {[%clk 0:01:56.9]}
22... g5 {[%clk 0:01:50.5]} 23. Nd2 {[%clk 0:01:54.5]} 23... Nxb5 {[%clk
0:01:50.7]} 24. Rxh6 {[%clk 0:01:53.9]} 24... Rh8 {[%clk 0:01:39.6]} 25. Rf6
{[%clk 0:01:50]} 25... Rh1+ {[%clk 0:01:39.5]} 26. Nf1 {[%clk 0:01:51.4]} 26...
Be3 {[%clk 0:01:33.8]} 27. Rf5 {[%clk 0:01:52.8]} 27... Ke6 {[%clk 0:01:28.3]}
28. Rxd5 {[%clk 0:01:52.6]} 28... Rxf1+ {[%clk 0:01:15.1]} 29. Bxf1 {[%clk
0:01:54.5]} 29... Kxd5 {[%clk 0:01:16.6]} 30. Bg2+ {[%clk 0:01:56.1]} 30... Kc5
{[%clk 0:01:13.9]} 31. Ke2 {[%clk 0:01:57.1]} 31... Rh8 {[%clk 0:01:12]} 32. Rf1
{[%clk 0:01:57.3]} 32... Rh2 {[%clk 0:01:12.8]} 33. Rf5+ {[%clk 0:01:58.3]}
33... Kb6 {[%clk 0:01:07.8]} 34. Kf1 {[%clk 0:01:59.1]} 34... Nc3 {[%clk
0:01:05.1]} 35. Rxf7 {[%clk 0:01:54]} 35... Nd1 {[%clk 0:00:57.8]} 36. Rxb7+
{[%clk 0:01:53.4]} 36... Kc5 {[%clk 0:00:58.1]} 37. Rb4 {[%clk 0:01:51.6]} 37...
Rh8 {[%clk 0:00:45.7]} 38. Rc4+ {[%clk 0:01:50]} 38... Kd6 {[%clk 0:00:40.4]}
39. Bxd4 {[%clk 0:01:49.7]} 39... Bxd4 {[%clk 0:00:33.3]} 40. Rxd4+ {[%clk
0:01:51.6]} 40... Ke5 {[%clk 0:00:34.5]} 41. Re4+ {[%clk 0:01:46.7]} 41... Kf6
{[%clk 0:00:34.5]} 42. Ke1 {[%clk 0:01:44.7]} 42... Nc3 {[%clk 0:00:32.9]} 43.
Rc4 {[%clk 0:01:46]} 43... Rh2 {[%clk 0:00:32]} 44. Kf2 {[%clk 0:01:43.4]} 44...
Nd1+ {[%clk 0:00:29.9]} 45. Kg3 {[%clk 0:01:44.7]} 1-0

[Event "*** Titled Tuesday 3|2 Blitz"]
[Site "Chess.com"]
[Date "2015.10.06"]
[Round "6"]
[White "rikyshi"]
[Black "Carolina-moon"]
[Result "0-1"]
[WhiteElo "2125"]
[BlackElo "2047"]
[TimeControl "180+2"]
[EndTime "12:13:43 PDT"]
[Termination "Carolina-moon won by checkmate"]

1. e4 {[%clk 0:03:01.9]} 1... c5 {[%clk 0:03:00.3]} 2. Nf3 {[%clk 0:03:02.9]}
2... d6 {[%clk 0:03:00.8]} 3. d4 {[%clk 0:03:03.8]} 3... cxd4 {[%clk 0:03:02.7]}
4. Nxd4 {[%clk 0:03:05.7]} 4... Nf6 {[%clk 0:03:04.3]} 5. Nc3 {[%clk 0:03:06.7]}
5... a6 {[%clk 0:03:05.8]} 6. a4 {[%clk 0:03:03.5]} 6... e5 {[%clk 0:02:56.9]}
7. Nb3 {[%clk 0:03:03.8]} 7... Nc6 {[%clk 0:02:57.7]} 8. Be2 {[%clk 0:03:04.6]}
8... Be6 {[%clk 0:02:58.1]} 9. O-O {[%clk 0:03:05.7]} 9... Be7 {[%clk
0:02:58.4]} 10. Be3 {[%clk 0:03:06.7]} 10... O-O {[%clk 0:02:58.4]} 11. f4
{[%clk 0:03:06]} 11... exf4 {[%clk 0:02:58.9]} 12. Rxf4 {[%clk 0:03:07.9]} 12...
Ne5 {[%clk 0:03:00]} 13. Nd5 {[%clk 0:03:06.5]} 13... Rc8 {[%clk 0:02:43.8]} 14.
Nxe7+ {[%clk 0:03:03]} 14... Qxe7 {[%clk 0:02:44.3]} 15. Nd4 {[%clk 0:03:04.4]}
15... Rfd8 {[%clk 0:02:38.5]} 16. Qe1 {[%clk 0:02:41.2]} 16... Ng6 {[%clk
0:02:37.8]} 17. Rf1 {[%clk 0:02:37.1]} 17... Nxe4 {[%clk 0:02:36.2]} 18. Bd3
{[%clk 0:02:33.4]} 18... Nc5 {[%clk 0:02:27.7]} 19. Bf5 {[%clk 0:02:31]} 19...
Re8 {[%clk 0:02:20]} 20. b4 {[%clk 0:02:25.4]} 20... Nd7 {[%clk 0:02:18.4]} 21.
Qg3 {[%clk 0:02:14.8]} 21... Nde5 {[%clk 0:02:13.7]} 22. Bg5 {[%clk 0:02:06.9]}
22... Qd7 {[%clk 0:02:06.4]} 23. h4 {[%clk 0:02:03.2]} 23... Rc4 {[%clk
0:01:50.9]} 24. c3 {[%clk 0:01:56.5]} 24... Bxf5 {[%clk 0:01:47.4]} 25. Nxf5
{[%clk 0:01:56.4]} 25... Rec8 {[%clk 0:01:40.8]} 26. Rac1 {[%clk 0:01:54.8]}
26... Rg4 {[%clk 0:01:33.3]} 27. Qh3 {[%clk 0:01:51.5]} 27... Qxa4 {[%clk
0:01:20.6]} 28. Nxd6 {[%clk 0:01:46.7]} 28... Rf8 {[%clk 0:01:14.5]} 29. Be3
{[%clk 0:01:01.7]} 29... Rxh4 {[%clk 0:01:09.8]} 30. Qg3 {[%clk 0:01:01.4]}
30... Rg4 {[%clk 0:01:10.2]} 31. Qh3 {[%clk 0:00:56]} 31... Qc6 {[%clk
0:01:04.1]} 32. Bc5 {[%clk 0:00:54.7]} 32... b6 {[%clk 0:00:57.8]} 33. Nxf7
{[%clk 0:00:54]} 33... Rxf7 {[%clk 0:00:49.8]} 34. Rxf7 {[%clk 0:00:55.1]} 34...
Kxf7 {[%clk 0:00:50.2]} 35. Rf1+ {[%clk 0:00:55.4]} 35... Kg8 {[%clk 0:00:47]}
36. Bd4 {[%clk 0:00:56.1]} 36... Qe4 {[%clk 0:00:42.9]} 37. Qh5 {[%clk
0:00:50.3]} 37... Qxg2# {[%clk 0:00:42.3]} 0-1

[Event "*** Titled Tuesday 3|2 Blitz"]
[Site "Chess.com"]
[Date "2015.10.06"]
[Round "6"]
[White "Zvonokchess"]
[Black "Konavets"]
[Result "1/2-1/2"]
[WhiteElo "2559"]
[BlackElo "2518"]
[TimeControl "180+2"]
[EndTime "12:13:44 PDT"]
[Termination "Game drawn by repetition"]

1. Nf3 {[%clk 0:02:58.6]} 1... b5 {[%clk 0:03:00.8]} 2. e4 {[%clk 0:02:58.5]}
2... a6 {[%clk 0:03:02.1]} 3. d4 {[%clk 0:02:59.1]} 3... Bb7 {[%clk 0:03:03]} 4.
Bd3 {[%clk 0:03:00.2]} 4... e6 {[%clk 0:03:04.2]} 5. O-O {[%clk 0:03:01.2]} 5...
Nf6 {[%clk 0:03:05.7]} 6. e5 {[%clk 0:03:01]} 6... Nd5 {[%clk 0:03:06.9]} 7. c3
{[%clk 0:03:00.9]} 7... d6 {[%clk 0:03:06.1]} 8. Re1 {[%clk 0:03:00.9]} 8... Nd7
{[%clk 0:03:06.6]} 9. a4 {[%clk 0:02:59.9]} 9... Bc6 {[%clk 0:02:57.4]} 10. axb5
{[%clk 0:02:51.5]} 10... axb5 {[%clk 0:02:59.3]} 11. Rxa8 {[%clk 0:02:52.3]}
11... Qxa8 {[%clk 0:03:00.7]} 12. Na3 {[%clk 0:02:49.6]} 12... b4 {[%clk
0:02:56.8]} 13. Nb5 {[%clk 0:02:13.4]} 13... bxc3 {[%clk 0:02:41]} 14. bxc3
{[%clk 0:02:14.4]} 14... Bxb5 {[%clk 0:02:41.3]} 15. Bxb5 {[%clk 0:02:16.3]}
15... c6 {[%clk 0:02:42.7]} 16. Bc4 {[%clk 0:02:08.2]} 16... Nxc3 {[%clk
0:02:41]} 17. Qb3 {[%clk 0:02:07.2]} 17... Nd5 {[%clk 0:02:39.6]} 18. Bxd5
{[%clk 0:01:51.7]} 18... cxd5 {[%clk 0:02:41.5]} 19. Qb5 {[%clk 0:01:52.4]}
19... Qb8 {[%clk 0:02:16.4]} 20. Qa4 {[%clk 0:01:53.3]} 20... Qb7 {[%clk
0:01:51.1]} 21. Bf4 {[%clk 0:01:53.9]} 21... dxe5 {[%clk 0:00:57.4]} 22. Nxe5
{[%clk 0:01:54.7]} 22... Be7 {[%clk 0:00:58.9]} 23. Rc1 {[%clk 0:01:04.6]} 23...
Bf6 {[%clk 0:00:36]} 24. Qa3 {[%clk 0:00:13.4]} 24... Be7 {[%clk 0:00:31.2]} 25.
Qa4 {[%clk 0:00:14.5]} 25... Bf6 {[%clk 0:00:32.7]} 26. Qa3 {[%clk 0:00:15.6]}
26... Be7 {[%clk 0:00:12.5]} 27. Qa4 {[%clk 0:00:16.1]} 27... Bf6 {[%clk
0:00:14]} 1/2-1/2